Cogmind - Beta 10.1 @@@ ROGUE MODE // 2020.09.29 @ 00:07:58 Player: Sukhoy Result: Destroyed by G-34 Mercenary with Small Laser Performance ------------- Evolutions (0) 0 Regions Visited (1) 200 Robots Destroyed (18) 90 Value Destroyed (355) 355 Prototype IDs (3) 60 Alien Tech Used (0) 0 Bonus (0) 0 TOTAL SCORE: 705 Bonus ------- None Cogmind --------- Core Integrity 0/250 Matter 279/300 Energy 129/250 System Corruption 1% Temperature Cool (168) Movement Rolling (80) Location -10/Materials Parts ------- > --- POWER (1) -------- Ion Engine > --- PROPULSION (2) --- Wheel Wheel > --- UTILITY (2) ------ Small Storage Unit ECM Suite > --- WEAPON (2) ------- Heavy EM Pulse Gun Heavy EM Pulse Gun > --- INVENTORY (6) ---- Light Nuclear Core Compact Wheel Heat Sink Small Laser Light Assault Rifle Peak State ------------ > --- POWER ------------ Ion Engine > --- PROPULSION ------- Wheel Wheel > --- UTILITY ---------- Small Storage Unit Improved Terrain Scanner > --- WEAPON ----------- Particle Gun Assault Rifle > --- INVENTORY -------- Light Nuclear Core Compact Wheel Compact Wheel Heat Sink Light Assault Rifle Light Assault Rifle [Rating: 9] Favorites ----------- Power Ion Engine Engine Ion Engine Propulsion Wheel Treads Light Treads Wheel Wheel Utility Small Storage Unit Device ECM Suite Storage Small Storage Unit Processor Seismic Analyzer Weapon Light Assault Rifle Energy Gun Small Laser Ballistic Gun Light Assault Rifle Build | -11 -10 ------- Run | Scr Mat Slots Evolved . | . . Power . | . . Propulsion . | . . Utility . | . . Weapon . | . . Parts Attached 25 | 12 13 Power 3 | 2 1 Engine 3 | 2 1 Core . | . . Reactor . | . . Propulsion 9 | 5 4 Treads 1 | 1 . Leg . | . . Wheel 8 | 4 4 Hover . | . . Flight . | . . Utility 5 | 3 2 Device 2 | . 2 Storage 2 | 2 . Processor 1 | 1 . Hackware . | . . Protection . | . . Artifact . | . . Weapon 8 | 2 6 Energy Gun 4 | . 4 Energy Cannon . | . . Ballistic Gun 4 | 2 2 Ballistic Cannon . | . . Launcher . | . . Special Weapon . | . . Impact Weapon . | . . Slashing Weapon . | . . Piercing Weapon . | . . Special Melee Weapon . | . . Unidentified Prototypes . | . . Parts Lost 8 | . 8 Power 1 | . 1 Propulsion 2 | . 2 Utility 1 | . 1 Weapon 4 | . 4 Highest Loss Streak 4 | . 4 Average Slot Usage (%) 94 | . 94 Engine 12 | . 12 Wheel 25 | . 25 Device 9 | . 9 Storage 14 | . 14 Processor 3 | . 3 Energy Gun 7 | . 7 Ballistic Gun 19 | . 19 Naked Turns . | . . Heaviest Build 16 | 16 15 Greatest Support 32 | 32 32 Greatest Overweight (x) 1 | . 1 Average Overweight (x) . | . . Largest Inventory Capacity 8 | 8 6 Average Capacity 6 | 6 6 Most Carried 6 | 5 6 Average Carried 4 | 2 4 Final Capacity 6 | 6 6 Final Carried 5 | 5 5 Class Distribution -------------------- 88% | Mutant 11% | Scavenger-Mutant Dominant Class ---------------- Mutant | -10/Materials Resources | -11 -10 ----------- Run | Scr Mat Matter Collected 580 | 384 196 Remotely . | . . Salvage Created 590 | 202 388 Parts 38 | 11 27 Haulers Intercepted . | . . Recyclers Shooed . | . . Parts Field Recycled . | . . Retrieved Matter . | . . Parts Self-Destructed . | . . Prevented . | . . Kills | -11 -10 ------- Run | Scr Mat Combat Hostiles Destroyed 9 | . 9 Guns 9 | . 9 Classes Destroyed 6 | 3 3 Worker 4 | 2 2 Tunneler 3 | 3 . Recycler 1 | 1 . Watcher 1 | . 1 Swarmer 1 | . 1 Grunt 8 | . 8 Best Kill Streak 3 | 3 2 Combat Bots Only 2 | . 2 Max Kills in Single Turn 1 | 1 1 Gunslinging . | . . Exploded . | . . Melee . | . . Uniques/NPCs Destroyed . | . . Combat | -11 -10 -------- Run | Scr Mat Damage Taken 910 | . 910 Core 259 | . 259 Absorbed by Shields . | . . Core Remaining (%) 100 | 100 . Volleys Fired 66 | 16 50 Largest 2 | 2 2 Hottest 90 | 40 90 Shots Fired 127 | 32 95 Gun 127 | 32 95 Cannon . | . . Launcher . | . . Special . | . . Kinetic 97 | 32 65 Thermal 21 | . 21 Explosive . | . . Electromagnetic 9 | . 9 Robot Hit Streak 16 | 8 16 Robot Miss Streak 3 | 2 3 Penetration Max . | . . Secondary Targets 2 | . 2 Max Gunslinging Chain 1 | . 1 Shots Hit Robots 85 | 23 62 Core Hits 32 | 9 23 Critical Hits . | . . Critical Kills . | . . Critical Parts Destroyed . | . . Melee Attacks . | . . Impact . | . . Slashing . | . . Piercing . | . . Sneak Attacks . | . . Combat Hostiles . | . . Follow-up Attacks . | . . Damage Inflicted 1060 | 240 820 Guns 962 | 240 722 Cannons . | . . Explosions 98 | . 98 Melee . | . . Ramming . | . . Kinetic 685 | 240 445 Thermal 263 | . 263 Explosive . | . . Electromagnetic 112 | . 112 Impact . | . . Slashing . | . . Piercing . | . . Highest Corruption 1 | . 1 Average Corruption 1 | . 1 Corruption Purged . | . . Effects 1 | . 1 Data Loss (minor) 1 | . 1 Overload Shots . | . . Overflow Damage . | . . Projectiles . | . . Explosions . | . . Melee . | . . Knockbacks . | . . Impact . | . . Kinetic . | . . Secondary . | . . Self-Inflicted Damage . | . . Shots . | . . Rammed . | . . Targets Rammed . | . . Kicked . | . . Crushed . | . . Highest Temperature 189 | . 189 Average Temperature 60 | . 60 Received Heat Transfer 339 | . 339 Siege Activations . | . . Robots Corrupted . | . . Combat Hostiles . | . . Parts Fried 1 | . 1 Impact Corruptions . | . . Robots Melted . | . . Combat Hostiles . | . . Parts Melted 1 | . 1 Heat Transferred 472 | . 472 Parts Sabotaged . | . . Parts Stolen . | . . Parts Stripped . | . . Power Chain Reactions 1 | . 1 Missiles Intercepted . | . . Alert | -11 -10 ------- Run | Scr Mat Peak Influence 220 | 30 220 Initial 19 | . 19 Average 93 | 10 121 Maximum Alert Level 1 | . 1 Low Security (%) 91 | 100 88 Level 1 8 | . 11 Level 2 . | . . Level 3 . | . . Level 4 . | . . Level 5 . | . . High Security . | . . Max Security . | . . Squads Dispatched 2 | . 2 Investigation 2 | . 2 Extermination . | . . Reinforcement . | . . Assault . | . . Garrison . | . . Intercept . | . . Construction Impeded . | . . Haulers Reinforced . | . . Stealth | -11 -10 --------- Run | Scr Mat Distress Signals 2 | . 2 Communications Jammed . | . . Distress Signals . | . . Times Spotted 20 | . 20 Peak Tracking Total 4 | . 4 Tactical Retreats 3 | . 3 Traps | -11 -10 ------- Run | Scr Mat Traps Triggered . | . . Indirectly . | . . Trap Hack Attempts . | . . Triggered . | . . Disarmed . | . . Reprogrammed . | . . Reused . | . . Traps Extracted . | . . Installed . | . . Triggered . | . . Machines | -11 -10 ---------- Run | Scr Mat Machines Disabled . | . . Max in Single Turn . | . . Machines Sabotaged . | . . Garrisons Compromised . | . . Overloaded Fab Kills . | . . Fab Network Shutdowns . | . . Hacking | -11 -10 --------- Run | Scr Mat Machines Accessed 4 | . 4 Terminals 3 | . 3 Fabricators . | . . Repair Stations . | . . Recycling Units 1 | . 1 Scanalyzers . | . . Garrison Access . | . . Total Hacks 13 | . 13 Successful 11 | . 11 Failed 2 | . 2 Catastrophic 1 | . 1 Database Lockouts . | . . Manual . | . . Terminals 9 | . 9 Fabricators . | . . Repair Stations . | . . Recycling Units 4 | . 4 Scanalyzers . | . . Garrison Access . | . . Terminal Hacks 8 | . 8 Record 5 | . 5 Prototype ID Bank 1 | . 1 Hauler Manifests 2 | . 2 Fabricator Hacks . | . . Repair Station Hacks . | . . Recycling Unit Hacks 3 | . 3 Process 1 | . 1 Report Inventory 1 | . 1 Retrieve Matter 1 | . 1 Scanalyzer . | . . Garrison Access Hacks . | . . Unauthorized Hacks . | . . Terminals . | . . Fabricators . | . . Repair Stations . | . . Recycling Units . | . . Scanalyzers . | . . Garrison Access . | . . Data Cores Recovered . | . . Used . | . . Hacking Detections 3 | . 3 Full Trace Events 3 | . 3 Feedback Events 1 | . 1 Corruption 1 | . 1 Feedback Blocked . | . . Robot Schematics Acquired . | . . Robots Built . | . . Matter . | . . Time . | . . Total Robot Build Rating . | . . Part Schematics Acquired . | . . Parts Built . | . . Matter . | . . Time . | . . Total Part Build Rating . | . . Parts Repaired . | . . Time . | . . Parts Recycled . | . . Recycled Matter 12 | . 12 Retrieved Matter 12 | . 12 Retrieved Components . | . . Parts Scanalyzed . | . . Part Schematics Acquired . | . . Parts Damaged . | . . Bothacking | -11 -10 ------------ Run | Scr Mat Used RIF Installer . | . . Robots Hacked . | . . Non-combat . | . . Combat . | . . Robot Hacks Applied . | . . Relay Couplers Released . | . . Robots Rewired . | . . Allies Hacked . | . . Hacks Repelled . | . . Allies | -11 -10 -------- Run | Scr Mat Total Allies . | . . Largest Group . | . . Highest-Rated Group . | . . Highest-Rated Ally . | . . Total Orders . | . . Ally Attacks . | . . Total Damage . | . . Kills . | . . Allies Corrupted . | . . Allies Melted . | . . Intel | -11 -10 ------- Run | Scr Mat Robot Analysis Total . | . . Derelict Logs Recovered . | . . Drone Launches . | . . Drone Recoveries . | . . Exploration | -11 -10 ------------- Run | Scr Mat Turns Passed 532 | 134 398 Spaces Moved 291 | 61 230 Core 3 | 3 . Treads 5 | 5 . Legs . | . . Wheels 283 | 53 230 Hover . | . . Flight . | . . Fastest Speed 50 | 50 80 Average Speed 89 | 98 87 Slowest Speed 160 | 160 100 Overloaded Moves . | . . Propulsion Burnouts . | . . Robots Hopped . | . . Cave-ins Triggered . | . . Exploration Rate (%) 20 | 4 36 Regions Visited 1 Branch Regions . Pre-discovered Areas . | . . Known Exits Taken . | . . Unknown Exits Taken 1 | 1 . Scrap Searched . | . . Spaces Dug . | . . Terrain Destroyed 4 | . 4 Melee . | . . Projectile . | . . AOE 4 | . 4 Terrain Rammed . | . . Walls Destroyed . | . . Machines Disabled . | . . Actions | -11 -10 --------- Run | Scr Mat Total 443 | 104 339 Wait 26 | . 26 Move 290 | 60 230 Hop . | . . Pick Up 27 | 14 13 Fast Attach 2 | . 2 Attach 14 | 7 7 Detach . | . . Swap 9 | 5 4 Drop 9 | 2 7 Fire 66 | 16 50 Melee . | . . Ram . | . . Kick . | . . Crush . | . . Escape Stasis . | . . Rewire . | . . Trap . | . . Miscellaneous . | . . Route ------- -11/Scrapyard -10/Materials (discovered 3 exits: [*Mat x2] / [*Min]) History --------- Turn | Location | Event 25 | -11/Scrapyard | Discovered new exit (range 16) 135 | -11/Scrapyard | Entered Materials 151 | -10/Materials | Discovered new exit (range 8) 319 | -10/Materials | Discovered new exit (range 3) 353 | -10/Materials | Lost 4 parts (1p1n1u1w) 401 | -10/Materials | Core integrity fell below 50% 401 | -10/Materials | Core integrity fell below 20% 431 | -10/Materials | Lost 3 parts (1n2w) 498 | -10/Materials | Discovered new exit (range 15) 533 | -10/Materials | Destroyed by G-34 Mercenary with Small Laser Last Messages --------------- K-01 Serf collects debris. K-01 Serf destroyed. Extracted 2 matter. Acquired Wheel. K-01 Serf collects debris. Acquired 10 matter. K-01 Serf collects debris. K-01 Serf destroyed. Acquired 2 matter. Acquired Wheel. Acquired 10 matter. EXIT=FOUND Acquired Hvy. EM Pulse Gun. Dropped Aluminum Leg. Acquired Hvy. EM Pulse Gun. Chain reaction triggered in Lgt. Nuclear Core. System corrupted: Component data lost. Lgt. Assault Rifle destroyed. Imp. Heat Sink fried. G-47 Trooper destroyed. Map ----- +----------------------------------------------------+ | | | | | ??????????????????????########### | | ?????????????????????## # | | ??????????????????#### | | ??????????????????? | | ????????????????????## | | ???????????????###### | | ?????????????+## # # | | ?????????????? ## # | | ??????????????? ## | | ???????????????# ## # *# | | ????????????????# #### ## =%! | | ????????????????# ! # | | ????????????????# % ## | | ????????????????# ^^ ^ """ ## | | ???????????????##^ "" """ ## | | ???????????????# "Y """ # | | ???????????????# "" # | | ???????######### %+ | | ???????#!![[!!## =#! | | ???????#!! !!## ######## ##### | | ???????# = ## #??????# #???? | | ??????## ## #??????# #???? | | ??????# ^ +??????# #???? | | ??????# @ ^ % #?????? ???? | | ??????## """"" ##?????? ???? | | ???????# ""T"" #??????? ???? | | ???????# #??????# ??? | | ???????# #??????# ??? | | ???????# ! ???????# ??? | | ???????# ######??????? ??? | | ???????# #???????????? ??? | | ???????# ;???????????? ???? | | ???????# =% ;#??????????? ???? | | ???????# g ;#????????????????? | | ???????# ;#????????????????? | | ???????# #????????????????? | | ???????? < #????????????????? | | ???????? ???????????????????? | | ????????###?????????????????????? | | ????????????????????????????????? | | ????????????????????????????????? | | ????????????????????????????????? | | ????????????????????????????????? | | ????????????????????????????????? | | ????????????????????????????????? | | ????????????????????????????????? | | ????????????????????????????????? | | ????????????????????????????????? | +----------------------------------------------------+ Best States ------------- Heat Dissipation 25 Energy Generation 10 Energy Capacity 250 Matter Stores 300 Matter Capacity 300 Sight Range 16 Terrain Scan Range 16 Terrain Scan Density 60 ECM Strength 1 Evasion (%) 44 Recoil Reduction 1 Item Schematics ----------------- None Robot Schematics ------------------ None Fabricated ------------ Nothing Alien Tech Used ----------------- None Achievements -------------- None Challenges ------------ None Game ------ Seed RecyclingCloakingTreads Manual? 0 Play Time 00:09:36 Cumulative 10.3 hours Start 2020.09.28 @ 23:58:58 End 2020.09.29 @ 00:07:58 Sessions 1 Manual Loads 0 Difficulty Rogue Special Mode None Game No. 12 Rogue 12 Adventurer 0 Explorer 0 Win Type - Total 0 Types 0/0/0/0/0/0/0/0/0 Lore% 3 Gallery% 16 Achievement% 15 Wizard Run 0 Options --------- ASCII 0 Keyboard 0 Movement Mouse Keybinds 0 Fullscreen 1 Font 18/TerminusBold Map View 76x50 Tactical HUD 0 Map Filters NONE Filters NONE Steam 1 RUN: 83bc5ad0-3e4d-41ec-8125-f6f321de13ad